[Event "Czech Open-E Teams 2022"]
[Site "Pardubice"]
[Date "2022.07.16"]
[Round "5.23"]
[White "Nytra, Ondrej"]
[Black "Duda, Antonin"]
[Result "1-0"]
[ECO "C89"]
[WhiteElo "2214"]
[BlackElo "2038"]
[Annotator "ChessBase"]
[PlyCount "81"]
[EventDate "2022.07.14"]
[EventType "team-tourn"]
[EventCountry "CZE"]
[SourceTitle "playchess.com"]
[Source "ChessBase"]
[SourceQuality "1"]
[TimeControl "5400+30"]

1. e4 {[%emt 0:00:03]} e5 {[%emt 0:00:18]} 2. Nf3 {[%emt 0:00:04]} Nc6 {[%emt 0:00:04]} 3. Bb5 {[%emt 0:00:07]} a6 {[%emt 0:00:16]} 4. Ba4 {[%emt 0:00:03]} Nf6 {[%emt 0:00:09]} 5. O-O {[%emt 0:00:03]} Be7 {[%emt 0:00:27]} 6. Re1 {[%emt 0:00:08]} b5 {[%emt 0:00:10]} 7. Bb3 {[%emt 0:00:03]} O-O {[%emt 0:00:18]} 8. c3 {[%emt 0:00:08]} d5 {[%emt 0:00:58]} 9. exd5 {[%emt 0:00:12]} Nxd5 {[%emt 0:00:36]} 10. Nxe5 {[%emt 0:00:16]} Nxe5 {[%emt 0:00:15]} 11. Rxe5 {[%emt 0:00:05]} c6 {[%emt 0:00:24]} 12. d4 {[%emt 0:00:13]} Bd6 {[%emt 0:01:08]} 13. Re1 {[%emt 0:00:47]} Qh4 {[%emt 0:00:17]} 14. g3 {[%emt 0:00:03]} Qh3 {[%emt 0:00:24]} 15. Re4 {[%emt 0:00:10]} g5 {[%emt 0:00:31]} 16. Qf1 {[%emt 0:03:57]} Qh6 {[%emt 0:00:32]} 17. Nd2 {[%emt 0:04:42]} f5 {[%emt 0:05:02]} 18. Re1 {[%emt 0:00:32]} Kh8 {[%emt 0:10:19]} 19. c4 {[%emt 0:09:22]} Nf6 {[%emt 0:15:00]} 20. c5 {[%emt 0:06:27]} Bb8 {[%emt 0:06:10]} 21. Nf3 {[%emt 0:21:33]} f4 {[%emt 0:05:08]} 22. Bd2 {[%emt 0:10:51]} Ra7 {[%emt 0:07:51]} 23. Be6 {[%emt 0:05:09]} Qh5 {[%emt 0:18:36]} 24. Bxc8 {[%emt 0:04:17]} Qxf3 {[%emt 0:00:24]} 25. Be6 {[%emt 0:05:43]} Qh5 {[%emt 0:11:50]} 26. Qe2 {[%emt 0:05:09]} g4 {[%emt 0:04:14]} 27. Bxf4 {[%emt 0:01:11]} Bxf4 {[%emt 0:00:20]} 28. gxf4 {[%emt 0:00:04]} Rg7 {[%emt 0:01:45]} 29. Qe5 {[%emt 0:01:31]} Qh4 {[%emt 0:00:49]} 30. Re3 {[%emt 0:00:32]} Nh5 {[%emt 0:02:00]} 31. f5 {[%emt 0:02:37]} Qg5 {[%emt 0:00:56]} 32. Re4 {[%emt 0:02:49]} Nf6 {[%emt 0:01:06]} 33. Re3 {[%emt 0:00:46]} Nh5 {[%emt 0:00:36]} 34. Rae1 {[%emt 0:03:42]} h6 {[%emt 0:00:28]} 35. Qd6 {[%emt 0:01:21]} Rd8 {[%emt 0:00:05]} 36. Qxc6 {[%emt 0:00:05]} Rxd4 {[%emt 0:00:20]} 37. Qe8+ {[%emt 0:01:29]} Kh7 {[%emt 0:00:31]} 38. Bf7 {[%emt 0:00:12]} Nf4 {[%emt 0:00:30]} 39. Re7 {[%emt 0:00:24]} h5 {[%emt 0:07:00]} 40. Qg8+ {[%emt 0:00:15]} Kh6 {[%emt 0:02:11]} 41. R7e6+ 1-0

[Event "Czech Open-E Teams 2022"]
[Site "Pardubice"]
[Date "2022.07.16"]
[Round "5.24"]
[White "Sykora, Ondrej"]
[Black "Vojta, Tomas"]
[Result "1/2-1/2"]
[ECO "D04"]
[WhiteElo "2099"]
[BlackElo "2319"]
[Annotator "ChessBase"]
[PlyCount "150"]
[EventDate "2022.07.14"]
[EventType "team-tourn"]
[EventCountry "CZE"]
[SourceTitle "playchess.com"]
[Source "ChessBase"]
[SourceQuality "1"]
[TimeControl "5400+30"]

1. Nf3 {[%emt 0:00:02]} d5 {[%emt 0:00:31]} 2. d4 {[%emt 0:00:05]} Nf6 {[%emt 0:02:08]} 3. e3 {[%emt 0:00:09]} Bg4 {[%emt 0:00:41]} 4. b3 {[%emt 0:00:36]} e6 {[%emt 0:01:23]} 5. Bb2 {[%emt 0:00:10]} Nbd7 {[%emt 0:01:17]} 6. Nbd2 {[%emt 0:00:16]} Ne4 {[%emt 0:02:59]} 7. Be2 {[%emt 0:00:21]} Bb4 {[%emt 0:05:22]} 8. O-O {[%emt 0:00:22]} Nc3 {[%emt 0:01:27]} 9. Qe1 {[%emt 0:03:11]} Nxe2+ {[%emt 0:02:39]} 10. Qxe2 {[%emt 0:00:03]} c6 {[%emt 0:07:48]} 11. c3 {[%emt 0:01:23]} Be7 {[%emt 0:01:10]} 12. c4 O-O 13. e4 {[%emt 0:01:51]} Bb4 {[%emt 0:05:56]} 14. Qd3 {[%emt 0:07:34]} dxe4 {[%emt 0:06:19]} 15. Nxe4 {[%emt 0:00:46]} Bf5 {[%emt 0:02:33]} 16. Qe3 {[%emt 0:00:56]} Re8 {[%emt 0:05:11]} 17. Ng3 {[%emt 0:00:32]} Bg6 {[%emt 0:00:28]} 18. Rfd1 {[%emt 0:04:56]} Qc7 {[%emt 0:03:00]} 19. Nh4 {[%emt 0:02:00]} Bd6 {[%emt 0:03:24]} 20. Nxg6 {[%emt 0:01:23]} hxg6 {[%emt 0:00:16]} 21. Qf3 {[%emt 0:06:33]} Rad8 {[%emt 0:05:09]} 22. Nf1 {[%emt 0:00:58]} Nf6 {[%emt 0:07:01]} 23. g3 {[%emt 0:00:49]} Be7 {[%emt 0:02:54]} 24. Ne3 {[%emt 0:00:38]} Rd7 {[%emt 0:00:38]} 25. Rac1 {[%emt 0:09:35]} Qa5 {[%emt 0:03:55]} 26. a4 {[%emt 0:10:34]} Red8 {[%emt 0:00:55]} 27. Nc2 {[%emt 0:06:33]} Ne8 {[%emt 0:01:31]} 28. Bc3 {[%emt 0:00:23]} Qc7 {[%emt 0:03:00]} 29. Rd3 {[%emt 0:06:11]} Bf6 {[%emt 0:02:11]} 30. Rcd1 {[%emt 0:02:25]} Qb6 {[%emt 0:05:56]} 31. Ba1 {[%emt 0:00:43]} a5 {[%emt 0:00:57]} 32. Kg2 {[%emt 0:07:33]} Qc7 {[%emt 0:01:06]} 33. Ne3 {[%emt 0:02:24]} c5 {[%emt 0:08:20]} 34. Nc2 {[%emt 0:06:41]} cxd4 {[%emt 0:04:52]} 35. Bxd4 {[%emt 0:03:58]} Qc6 {[%emt 0:02:05]} 36. R3d2 {[%emt 0:02:56]} Qxf3+ {[%emt 0:01:49]} 37. Kxf3 {[%emt 0:00:08]} Bg5 {[%emt 0:00:24]} 38. Re2 {[%emt 0:01:44]} Nc7 {[%emt 0:01:13]} 39. Kg4 {[%emt 0:00:59]} Be7 {[%emt 0:00:23]} 40. Red2 {[%emt 0:00:15]} f5+ {[%emt 0:00:22]} 41. Kh3 {[%emt 0:00:01]} Bc5 {[%emt 0:00:51]} 42. Kg2 {[%emt 0:00:16]} Na6 {[%emt 0:00:33]} 43. Bc3 {[%emt 0:00:23]} Rxd2 {[%emt 0:00:15]} 44. Rxd2 {[%emt 0:00:01]} Rxd2 {[%emt 0:00:08]} 45. Bxd2 {[%emt 0:00:05]} b6 {[%emt 0:00:07]} 46. f4 {[%emt 0:01:35]} Kf7 {[%emt 0:00:19]} 47. Bc3 {[%emt 0:00:05]} Be7 {[%emt 0:00:32]} 48. Bd4 {[%emt 0:00:46]} Nc5 {[%emt 0:00:45]} 49. Ne1 {[%emt 0:02:40]} Bf6 {[%emt 0:01:11]} 50. Be3 {[%emt 0:00:41]} Ke7 {[%emt 0:00:39]} 51. Bxc5+ {[%emt 0:03:19]} bxc5 {[%emt 0:00:01]} 52. Nf3 {[%emt 0:00:19]} Kd6 {[%emt 0:00:12]} 53. g4 {[%emt 0:00:11]} fxg4 {[%emt 0:01:24]} 54. Nd2 {[%emt 0:00:07]} Bh4 {[%emt 0:00:47]} 55. Ne4+ {[%emt 0:00:29]} Kc6 {[%emt 0:00:01]} 56. Kf1 {[%emt 0:01:16]} Bf6 {[%emt 0:00:07]} 57. Kf2 {[%emt 0:00:07]} e5 {[%emt 0:00:40]} 58. Kg3 {[%emt 0:00:09]} exf4+ {[%emt 0:00:16]} 59. Kxf4 {[%emt 0:00:16]} Bd4 {[%emt 0:00:57]} 60. Kxg4 {[%emt 0:01:17]} Be3 {[%emt 0:00:03]} 61. Kf3 {[%emt 0:00:19]} Bd4 {[%emt 0:00:03]} 62. Kf4 {[%emt 0:02:08]} Bf6 {[%emt 0:00:06]} 63. Nd2 {[%emt 0:00:25]} Be7 {[%emt 0:00:26]} 64. Ke4 {[%emt 0:00:23]} Kd6 {[%emt 0:00:08]} 65. Nf3 {[%emt 0:00:40]} Bf6 {[%emt 0:00:19]} 66. h3 {[%emt 0:00:04]} Ke6 {[%emt 0:00:20]} 67. Ne1 {[%emt 0:00:12]} Be7 {[%emt 0:00:19]} 68. Nd3 {[%emt 0:00:05]} Bd6 {[%emt 0:00:28]} 69. Ne1 {[%emt 0:00:30]} Be7 {[%emt 0:00:04]} 70. Nc2 {[%emt 0:00:17]} Bg5 {[%emt 0:00:23]} 71. Na3 {[%emt 0:00:05]} Bf6 {[%emt 0:00:38]} 72. Nb5 {[%emt 0:00:43]} Be5 {[%emt 0:01:49]} 73. Na3 {[%emt 0:01:41]} Bf6 {[%emt 0:00:05]} 74. Nc2 {[%emt 0:00:10]} Bg5 {[%emt 0:00:10]} 75. Ne1 Be7 1/2-1/2

[Event "Czech Open-E Teams 2022"]
[Site "Pardubice"]
[Date "2022.07.16"]
[Round "5.25"]
[White "Vymazal, Bronislav"]
[Black "Cukrowski, Filip"]
[Result "0-1"]
[ECO "C02"]
[WhiteElo "2378"]
[BlackElo "2378"]
[Annotator "ChessBase"]
[PlyCount "116"]
[EventDate "2022.07.14"]
[EventType "team-tourn"]
[EventCountry "CZE"]
[SourceTitle "playchess.com"]
[Source "ChessBase"]
[SourceQuality "1"]
[TimeControl "5400+30"]

1. e4 {[%emt 0:00:30]} e6 {[%emt 0:08:18]} 2. d4 {[%emt 0:00:44]} d5 {[%emt 0:00:06]} 3. e5 {[%emt 0:00:05]} c5 {[%emt 0:00:05]} 4. c3 {[%emt 0:00:03]} Nc6 {[%emt 0:00:07]} 5. Nf3 {[%emt 0:00:03]} Bd7 {[%emt 0:00:04]} 6. Na3 {[%emt 0:02:14]} cxd4 {[%emt 0:00:55]} 7. cxd4 {[%emt 0:00:06]} Qb6 {[%emt 0:00:20]} 8. Nc2 {[%emt 0:00:22]} Nb4 {[%emt 0:00:06]} 9. Nxb4 {[%emt 0:02:00]} Bxb4+ {[%emt 0:00:06]} 10. Bd2 {[%emt 0:00:07]} Ne7 {[%emt 0:01:44]} 11. Bd3 {[%emt 0:03:52]} Nc6 {[%emt 0:02:31]} 12. Bxb4 {[%emt 0:03:20]} Nxb4 {[%emt 0:00:06]} 13. Be2 {[%emt 0:00:44]} Bb5 {[%emt 0:11:22]} 14. O-O {[%emt 0:02:53]} Bxe2 {[%emt 0:03:25]} 15. Qxe2 {[%emt 0:00:05]} Rc8 {[%emt 0:00:15]} 16. a3 {[%emt 0:07:19]} Nc6 {[%emt 0:01:17]} 17. b4 {[%emt 0:00:18]} O-O {[%emt 0:03:35]} 18. Qd3 {[%emt 0:01:55]} h6 {[%emt 0:02:56]} 19. Rac1 {[%emt 0:36:37]} a5 {[%emt 0:01:53]} 20. b5 {[%emt 0:00:05]} Ne7 {[%emt 0:00:08]} 21. a4 {[%emt 0:00:13]} Rc7 {[%emt 0:01:33]} 22. Qa3 {[%emt 0:00:53]} Rfc8 {[%emt 0:00:38]} 23. Rxc7 {[%emt 0:00:27]} Qxc7 {[%emt 0:00:05]} 24. Nd2 {[%emt 0:00:23]} Nf5 {[%emt 0:04:18]} 25. Nb3 {[%emt 0:01:50]} Qd8 {[%emt 0:00:09]} 26. Rc1 {[%emt 0:11:17]} Rc4 {[%emt 0:01:55]} 27. g3 {[%emt 0:02:02]} b6 {[%emt 0:03:18]} 28. Kg2 {[%emt 0:12:32]} Qc7 {[%emt 0:02:07]} 29. Qb2 {[%emt 0:02:43]} Rxc1 {[%emt 0:01:48]} 30. Qxc1 {[%emt 0:00:36]} Qxc1 {[%emt 0:02:10]} 31. Nxc1 {[%emt 0:00:05]} Nxd4 {[%emt 0:00:01]} 32. f4 {[%emt 0:00:17]} g5 {[%emt 0:03:06]} 33. Kf2 {[%emt 0:00:43]} gxf4 {[%emt 0:00:42]} 34. gxf4 {[%emt 0:00:06]} Kg7 {[%emt 0:00:35]} 35. Ke3 {[%emt 0:00:35]} Nf5+ {[%emt 0:00:33]} 36. Kf3 {[%emt 0:00:46]} Kg6 {[%emt 0:00:23]} 37. Ne2 {[%emt 0:04:30]} Kh5 {[%emt 0:00:41]} 38. h3 {[%emt 0:00:09]} Kh4 {[%emt 0:00:40]} 39. Kg2 {[%emt 0:00:08]} Ne3+ {[%emt 0:01:11]} 40. Kf3 {[%emt 0:00:08]} Nc4 {[%emt 0:02:02]} 41. Nd4 {[%emt 0:00:31]} Kh5 {[%emt 0:15:09]} 42. Nc6 {[%emt 0:01:07]} Kg6 {[%emt 0:00:49]} 43. Ne7+ {[%emt 0:02:03]} Kg7 {[%emt 0:00:52]} 44. Nc6 {[%emt 0:00:34]} Kf8 {[%emt 0:02:57]} 45. Kg4 {[%emt 0:02:18]} d4 {[%emt 0:04:42]} 46. Nxd4 {[%emt 0:00:35]} Nb2 {[%emt 0:01:34]} 47. Kh5 {[%emt 0:00:07]} Nxa4 {[%emt 0:00:43]} 48. Kxh6 {[%emt 0:00:06]} Nc3 {[%emt 0:00:49]} 49. h4 {[%emt 0:00:57]} a4 {[%emt 0:00:55]} 50. h5 {[%emt 0:01:00]} a3 {[%emt 0:00:12]} 51. Kh7 {[%emt 0:00:15]} Nxb5 {[%emt 0:00:42]} 52. Nc2 {[%emt 0:00:45]} a2 {[%emt 0:00:06]} 53. Kh8 {[%emt 0:00:44]} Nd4 {[%emt 0:00:21]} 54. Na1 {[%emt 0:00:04]} Nf5 {[%emt 0:00:15]} 55. Nb3 {[%emt 0:00:21]} b5 {[%emt 0:00:22]} 56. Na1 {[%emt 0:00:47]} b4 {[%emt 0:00:05]} 57. Nb3 {[%emt 0:00:17]} Nd4 {[%emt 0:01:02]} 58. Na1 {[%emt 0:00:07]} b3 {[%emt 0:00:17]} 0-1

[Event "Czech Open-E Teams 2022"]
[Site "Pardubice"]
[Date "2022.07.16"]
[Round "5.26"]
[White "Butkiewicz, Lukasz"]
[Black "Svoboda, Karel"]
[Result "1-0"]
[ECO "D35"]
[WhiteElo "2370"]
[BlackElo "1962"]
[Annotator "ChessBase"]
[PlyCount "95"]
[EventDate "2022.07.14"]
[EventType "team-tourn"]
[EventCountry "CZE"]
[SourceTitle "playchess.com"]
[Source "ChessBase"]
[SourceQuality "1"]
[TimeControl "5400+30"]

1. d4 {[%emt 0:00:07]} d5 {[%emt 0:05:54]} 2. c4 {[%emt 0:00:28]} e6 {[%emt 0:00:15]} 3. Nc3 {[%emt 0:00:31]} Nf6 {[%emt 0:00:12]} 4. cxd5 {[%emt 0:00:08]} Nxd5 {[%emt 0:00:38]} 5. e4 {[%emt 0:01:39]} Nf6 {[%emt 0:02:34]} 6. Nf3 {[%emt 0:02:26]} Be7 {[%emt 0:03:33]} 7. Bd3 {[%emt 0:04:17]} O-O {[%emt 0:03:52]} 8. O-O {[%emt 0:02:01]} c5 {[%emt 0:14:30]} 9. dxc5 {[%emt 0:02:43]} Bxc5 {[%emt 0:03:10]} 10. Bg5 {[%emt 0:03:10]} Be7 {[%emt 0:01:03]} 11. Qe2 {[%emt 0:03:01]} Nfd7 {[%emt 0:17:45]} 12. Bxe7 {[%emt 0:04:10]} Qxe7 {[%emt 0:00:59]} 13. e5 {[%emt 0:00:25]} Rd8 {[%emt 0:01:07]} 14. Rad1 {[%emt 0:11:37]} Nf8 {[%emt 0:02:32]} 15. Nb5 {[%emt 0:06:05]} Nc6 {[%emt 0:03:37]} 16. Nd6 {[%emt 0:02:47]} Ng6 {[%emt 0:03:29]} 17. Bxg6 {[%emt 0:02:16]} hxg6 {[%emt 0:01:32]} 18. Qe4 {[%emt 0:02:17]} a5 {[%emt 0:04:54]} 19. Qf4 {[%emt 0:08:41]} Bd7 {[%emt 0:13:14]} 20. Ng5 {[%emt 0:04:58]} f6 {[%emt 0:01:05]} 21. exf6 {[%emt 0:00:35]} gxf6 {[%emt 0:00:32]} 22. Nge4 {[%emt 0:00:21]} f5 {[%emt 0:02:08]} 23. Nxb7 {[%emt 0:04:38]} fxe4 {[%emt 0:01:30]} 24. Nxd8 {[%emt 0:00:07]} Rxd8 {[%emt 0:00:37]} 25. Qxe4 {[%emt 0:00:38]} Be8 {[%emt 0:00:26]} 26. h3 {[%emt 0:02:16]} Rxd1 {[%emt 0:01:43]} 27. Rxd1 {[%emt 0:00:07]} e5 {[%emt 0:04:41]} 28. a3 {[%emt 0:02:23]} Kg7 {[%emt 0:00:44]} 29. Qe3 {[%emt 0:04:07]} Qf6 {[%emt 0:02:13]} 30. Re1 {[%emt 0:03:35]} Bf7 {[%emt 0:00:36]} 31. Qc5 {[%emt 0:00:48]} a4 {[%emt 0:00:57]} 32. Re3 {[%emt 0:01:43]} Bb3 {[%emt 0:00:34]} 33. Rf3 {[%emt 0:07:49]} Qe6 {[%emt 0:00:10]} 34. Qf8+ {[%emt 0:00:50]} Kh7 {[%emt 0:00:06]} 35. Rc3 {[%emt 0:00:27]} Qd5 {[%emt 0:01:46]} 36. h4 {[%emt 0:02:19]} e4 {[%emt 0:01:23]} 37. Qf6 {[%emt 0:08:03]} Ne5 {[%emt 0:00:38]} 38. Rc7+ {[%emt 0:00:06]} Nf7 {[%emt 0:00:14]} 39. Qf4 {[%emt 0:01:33]} Qf5 {[%emt 0:00:55]} 40. Qe3 {[%emt 0:01:16]} Qe5 {[%emt 0:00:27]} 41. Rc5 {[%emt 0:00:27]} Qxb2 {[%emt 0:00:36]} 42. h5 {[%emt 0:00:08]} Qb1+ {[%emt 0:00:45]} 43. Kh2 {[%emt 0:00:04]} g5 {[%emt 0:00:19]} 44. Qh3 {[%emt 0:01:04]} e3 {[%emt 0:01:34]} 45. Qxe3 {[%emt 0:00:07]} Bc2 {[%emt 0:00:50]} 46. Rc7 {[%emt 0:01:24]} Qb8 {[%emt 0:00:33]} 47. Qg3 {[%emt 0:00:11]} Kg8 {[%emt 0:00:18]} 48. Rxc2 1-0

[Event "Czech Open-E Teams 2022"]
[Site "Pardubice"]
[Date "2022.07.16"]
[Round "5.27"]
[White "Kubat, Pavel"]
[Black "Kulon, Klaudia"]
[Result "0-1"]
[ECO "E62"]
[WhiteElo "1881"]
[BlackElo "2286"]
[Annotator "ChessBase"]
[PlyCount "64"]
[EventDate "2022.07.14"]
[EventType "team-tourn"]
[EventCountry "CZE"]
[SourceTitle "playchess.com"]
[Source "ChessBase"]
[SourceQuality "1"]
[TimeControl "5400+30"]

1. d4 {[%emt 0:05:24]} Nf6 {[%emt 0:02:08]} 2. Nf3 {[%emt 0:01:06]} g6 {[%emt 0:00:07]} 3. g3 {[%emt 0:01:10]} Bg7 {[%emt 0:00:05]} 4. Bg2 {[%emt 0:00:17]} O-O {[%emt 0:00:08]} 5. O-O {[%emt 0:00:24]} d6 {[%emt 0:00:05]} 6. c4 {[%emt 0:01:56]} Nc6 {[%emt 0:00:06]} 7. Nc3 {[%emt 0:00:16]} e5 {[%emt 0:00:06]} 8. d5 {[%emt 0:08:36]} Nb8 {[%emt 0:00:06]} 9. Nd2 {[%emt 0:04:07]} a5 {[%emt 0:00:53]} 10. b3 {[%emt 0:04:57]} Na6 {[%emt 0:01:26]} 11. Bb2 {[%emt 0:05:33]} Ne8 {[%emt 0:00:25]} 12. a3 {[%emt 0:02:20]} Bd7 {[%emt 0:00:43]} 13. Na2 {[%emt 0:00:25]} Nc5 {[%emt 0:02:27]} 14. Ne4 {[%emt 0:02:47]} b6 {[%emt 0:07:14]} 15. Nac3 {[%emt 0:04:38]} Na6 {[%emt 0:02:04]} 16. h4 {[%emt 0:07:31]} h6 {[%emt 0:01:17]} 17. Nb5 {[%emt 0:03:57]} f5 {[%emt 0:02:18]} 18. Nd2 {[%emt 0:04:14]} g5 {[%emt 0:03:06]} 19. hxg5 {[%emt 0:00:48]} Qxg5 {[%emt 0:00:06]} 20. e3 {[%emt 0:10:22]} e4 {[%emt 0:05:05]} 21. Bxg7 {[%emt 0:02:14]} Kxg7 {[%emt 0:00:03]} 22. Nd4 {[%emt 0:00:11]} Nf6 {[%emt 0:00:47]} 23. Ne2 {[%emt 0:00:16]} h5 {[%emt 0:02:49]} 24. Re1 {[%emt 0:08:50]} h4 {[%emt 0:01:10]} 25. Nf1 {[%emt 0:02:54]} Rh8 {[%emt 0:00:41]} 26. Nf4 {[%emt 0:00:36]} Kf7 {[%emt 0:01:20]} 27. Ra2 {[%emt 0:11:32]} Rag8 {[%emt 0:00:50]} 28. gxh4 {[%emt 0:01:47]} Qxh4 {[%emt 0:01:16]} 29. Ng3 {[%emt 0:01:56]} Rxg3 {[%emt 0:02:05]} 30. fxg3 {[%emt 0:00:17]} Qxg3 {[%emt 0:00:05]} 31. Ree2 {[%emt 0:02:10]} Ng4 {[%emt 0:00:12]} 32. Qd4 {[%emt 0:00:11]} Rh1+ {[%emt 0:00:23]} 0-1

[Event "Czech Open-E Teams 2022"]
[Site "Pardubice"]
[Date "2022.07.16"]
[Round "5.28"]
[White "Mondrzycki, Bartlomiej"]
[Black "Sysel, Michal"]
[Result "1-0"]
[ECO "A48"]
[WhiteElo "2180"]
[BlackElo "1864"]
[Annotator "ChessBase"]
[PlyCount "66"]
[EventDate "2022.07.14"]
[EventType "team-tourn"]
[EventCountry "CZE"]
[SourceTitle "playchess.com"]
[Source "ChessBase"]
[SourceQuality "1"]
[TimeControl "5400+30"]

1. d4 {[%emt 0:04:27]} Nf6 {[%emt 0:00:04]} 2. Nf3 {[%emt 0:00:07]} g6 {[%emt 0:00:10]} 3. Bg5 {[%emt 0:00:02]} Bg7 4. c3 d5 {[%emt 0:02:39]} 5. e3 {[%emt 0:00:33]} c6 {[%emt 0:01:13]} 6. Nbd2 {[%emt 0:00:18]} Qb6 {[%emt 0:04:50]} 7. Qb3 {[%emt 0:03:00]} Qxb3 {[%emt 0:09:19]} 8. axb3 {[%emt 0:03:41]} Nbd7 {[%emt 0:07:16]} 9. b4 {[%emt 0:00:47]} O-O {[%emt 0:00:45]} 10. Be2 {[%emt 0:02:08]} Re8 {[%emt 0:02:17]} 11. O-O {[%emt 0:16:39]} e5 {[%emt 0:09:05]} 12. Nb3 {[%emt 0:02:47]} Ne4 {[%emt 0:02:41]} 13. Bh4 {[%emt 0:00:51]} f6 {[%emt 0:05:07]} 14. Nfd2 {[%emt 0:17:28]} Nxd2 {[%emt 0:13:34]} 15. Nxd2 {[%emt 0:00:33]} exd4 {[%emt 0:04:46]} 16. cxd4 {[%emt 0:00:04]} f5 {[%emt 0:01:26]} 17. Bf3 {[%emt 0:05:38]} Nf6 {[%emt 0:00:40]} 18. b5 {[%emt 0:03:03]} Ne4 {[%emt 0:11:45]} 19. Bxe4 {[%emt 0:00:10]} fxe4 {[%emt 0:00:13]} 20. bxc6 {[%emt 0:02:41]} bxc6 {[%emt 0:00:05]} 21. Rfc1 {[%emt 0:00:06]} Bd7 {[%emt 0:01:27]} 22. Bg3 {[%emt 0:01:25]} Kf7 {[%emt 0:08:23]} 23. Ra6 {[%emt 0:02:19]} Rec8 {[%emt 0:04:29]} 24. Nb3 {[%emt 0:01:28]} Bf8 {[%emt 0:00:05]} 25. h3 {[%emt 0:04:21]} Be7 {[%emt 0:03:41]} 26. Be5 {[%emt 0:17:05]} Be8 {[%emt 0:05:55]} 27. Kh2 {[%emt 0:02:16]} Bd7 {[%emt 0:00:31]} 28. f4 {[%emt 0:01:49]} Be8 {[%emt 0:00:54]} 29. g4 {[%emt 0:01:23]} Bd7 {[%emt 0:00:37]} 30. Kg3 {[%emt 0:00:22]} h5 {[%emt 0:00:47]} 31. Rca1 {[%emt 0:03:47]} hxg4 {[%emt 0:00:05]} 32. hxg4 {[%emt 0:00:07]} Rh8 {[%emt 0:01:07]} 33. Bxh8 {[%emt 0:01:04]} Rxh8 {[%emt 0:00:07]} 1-0

[Event "Czech Open-E Teams 2022"]
[Site "Pardubice"]
[Date "2022.07.16"]
[Round "5.29"]
[White "Lajbl, Jan"]
[Black "Cech, Pavel"]
[Result "1/2-1/2"]
[ECO "C05"]
[WhiteElo "2212"]
[BlackElo "2358"]
[Annotator "ChessBase"]
[PlyCount "23"]
[EventDate "2022.07.14"]
[EventType "team-tourn"]
[EventCountry "CZE"]
[SourceTitle "playchess.com"]
[Source "ChessBase"]
[SourceQuality "1"]
[TimeControl "5400+30"]

1. e4 {[%emt 0:00:01]} e6 {[%emt 0:00:28]} 2. d4 {[%emt 0:00:04]} d5 {[%emt 0:00:06]} 3. Nd2 {[%emt 0:00:10]} Nf6 {[%emt 0:00:10]} 4. e5 {[%emt 0:00:02]} Nfd7 {[%emt 0:00:10]} 5. f4 {[%emt 0:00:31]} c5 {[%emt 0:00:15]} 6. c3 {[%emt 0:00:01]} Nc6 {[%emt 0:00:10]} 7. Ndf3 {[%emt 0:00:03]} Qb6 {[%emt 0:04:21]} 8. a3 {[%emt 0:00:05]} Be7 {[%emt 0:07:08]} 9. b4 {[%emt 0:01:23]} cxd4 {[%emt 0:00:07]} 10. cxd4 {[%emt 0:00:46]} O-O {[%emt 0:01:24]} 11. Bd3 {[%emt 0:04:46]} f6 {[%emt 0:00:26]} 12. Ne2 1/2-1/2

[Event "Czech Open-E Teams 2022"]
[Site "Pardubice"]
[Date "2022.07.16"]
[Round "5.30"]
[White "Sodoma, Jan"]
[Black "Novotny, Jaroslav"]
[Result "1-0"]
[ECO "A04"]
[WhiteElo "2312"]
[BlackElo "2169"]
[Annotator "ChessBase"]
[PlyCount "77"]
[EventDate "2022.07.14"]
[EventType "team-tourn"]
[EventCountry "CZE"]
[SourceTitle "playchess.com"]
[Source "ChessBase"]
[SourceQuality "1"]
[TimeControl "5400+30"]

1. Nf3 {[%emt 0:22:23]} g6 {[%emt 0:01:55]} 2. e4 {[%emt 0:00:22]} Bg7 {[%emt 0:00:06]} 3. d4 {[%emt 0:00:07]} d6 {[%emt 0:00:52]} 4. Bc4 {[%emt 0:00:39]} a6 {[%emt 0:02:50]} 5. Qe2 {[%emt 0:01:11]} e6 {[%emt 0:02:16]} 6. a4 {[%emt 0:02:08]} b6 {[%emt 0:00:20]} 7. Nc3 {[%emt 0:00:11]} Ne7 {[%emt 0:01:09]} 8. Bf4 {[%emt 0:00:22]} h6 {[%emt 0:02:34]} 9. h4 {[%emt 0:02:03]} Nd7 {[%emt 0:02:53]} 10. Rd1 {[%emt 0:06:17]} Bb7 {[%emt 0:01:06]} 11. O-O {[%emt 0:00:20]} g5 {[%emt 0:16:31]} 12. hxg5 {[%emt 0:00:44]} Ng6 {[%emt 0:00:27]} 13. Bc1 {[%emt 0:01:34]} hxg5 {[%emt 0:03:59]} 14. Bxg5 {[%emt 0:00:21]} Bf6 {[%emt 0:00:09]} 15. Qe3 {[%emt 0:01:03]} Rh5 {[%emt 0:08:14]} 16. Bf4 {[%emt 0:03:29]} Qe7 {[%emt 0:05:28]} 17. g4 {[%emt 0:04:39]} Rh3 {[%emt 0:13:25]} 18. Bg3 {[%emt 0:05:21]} O-O-O {[%emt 0:11:02]} 19. Kg2 {[%emt 0:00:56]} Rdh8 {[%emt 0:00:32]} 20. Rh1 {[%emt 0:00:23]} Rxh1 {[%emt 0:02:07]} 21. Rxh1 {[%emt 0:00:07]} Rxh1 {[%emt 0:00:47]} 22. Kxh1 {[%emt 0:00:09]} Qf8 {[%emt 0:03:12]} 23. Kg1 {[%emt 0:00:37]} Qh8 {[%emt 0:00:46]} 24. b4 {[%emt 0:05:43]} e5 25. Ne2 exd4 {[%emt 0:04:51]} 26. Nexd4 {[%emt 0:00:47]} Nde5 {[%emt 0:01:36]} 27. Nxe5 {[%emt 0:00:14]} Nxe5 {[%emt 0:01:21]} 28. Be2 {[%emt 0:01:10]} Kb8 {[%emt 0:08:10]} 29. Nf5 {[%emt 0:04:08]} Qe8 {[%emt 0:02:38]} 30. b5 {[%emt 0:03:35]} axb5 {[%emt 0:00:23]} 31. axb5 {[%emt 0:00:38]} Ng6 {[%emt 0:01:31]} 32. Nxd6 {[%emt 0:01:32]} cxd6 {[%emt 0:00:52]} 33. Bxd6+ {[%emt 0:00:11]} Kc8 {[%emt 0:00:27]} 34. Qxb6 {[%emt 0:04:53]} Bd8 {[%emt 0:00:13]} 35. Qc5+ {[%emt 0:00:42]} Kd7 {[%emt 0:00:03]} 36. Bd3 {[%emt 0:11:43]} Qe6 {[%emt 0:00:20]} 37. Bg3 {[%emt 0:00:07]} Bxe4 {[%emt 0:00:44]} 38. Qd4+ {[%emt 0:00:49]} Bd5 {[%emt 0:00:01]} 39. Bf5 {[%emt 0:00:20]} 1-0